fUSD/lending_fUSD_20240623
["ID","MTS","AMOUNT","RATE_DAILY","PERIOD"]
[330208082,1719162640452,-600.0,0.000111,4]
[330208083,1719162640462,-580.68316186,0.00011116,2]
[330208084,1719162642214,-128.65683814,0.00011116,2]
[330208085,1719162642223,-240.42697964,0.000112,4]
[330208086,1719162642237,-959.57302036,0.000112,4]
[330208087,1719162642252,-223.40720794,0.000113,4]
[330208097,1719162642913,-539.06283141,0.000113,4]
[330208126,1719162643626,-1037.52996065,0.000113,4]
[330208127,1719162643636,-150.0,0.00011642,2]
[330208128,1719162643645,-3106.52214219,0.00011644,2]
[330208129,1719162643655,-3106.52214219,0.00011644,2]
[330208130,1719162643664,-150.0,0.00011645,2]
[330208131,1719162643673,-150.0,0.00011646,2]
[330208132,1719162643682,-150.0,0.00011648,2]
[330208133,1719162643692,-150.0,0.0001165,2]
[330208134,1719162643701,-150.0,0.0001165,2]
[330208135,1719162643710,-150.0,0.00011651,2]
[330208136,1719162643720,-150.0,0.00011654,2]
[330208137,1719162643729,-150.0,0.00011657,2]
[330208138,1719162643738,-150.0,0.00011658,2]
[330208139,1719162643747,-150.0,0.00011659,2]
[330208140,1719162643757,-150.0,0.00011661,2]
[330208141,1719162643766,-150.0,0.00011663,2]
[330208142,1719162643775,-150.0,0.00011663,2]
[330208143,1719162643784,-150.0,0.00011674,2]
[330208144,1719162643794,-150.0,0.00011679,2]
[330208145,1719162643802,-150.0,0.00011679,2]
[330208146,1719162643812,-150.0,0.0001168,2]
[330208147,1719162643821,-3662.334,0.0001168,2]
[330208148,1719162643831,-3022.81708204,0.00011682,2]
[330208149,1719162643840,-150.0,0.00011683,2]
[330208150,1719162643849,-150.0,0.00011683,2]
[330208151,1719162643859,-150.0,0.00011684,2]
[330208152,1719162643868,-150.0,0.00011687,2]
[330208153,1719162643878,-150.0,0.00011692,2]
[330208154,1719162643888,-150.0,0.00011697,2]
[330208155,1719162643897,-150.0,0.00011701,2]
[330208156,1719162643906,-150.0,0.00011704,2]
[330208157,1719162643916,-150.0,0.00011704,2]
[330208158,1719162643925,-150.0,0.00011709,2]
[330208159,1719162643934,-150.0,0.00011713,2]
[330208160,1719162643944,-150.0,0.00011715,2]
[330208161,1719162643954,-150.0,0.00011715,2]
[330208162,1719162643963,-150.0,0.00011715,2]
[330208163,1719162643972,-150.0,0.00011719,2]
[330208164,1719162643982,-150.0,0.00011723,2]
[330208165,1719162643992,-150.0,0.00011725,2]
[330208166,1719162644001,-150.0,0.00011727,2]
[330208167,1719162644011,-150.0,0.00011731,2]
[330208168,1719162644020,-150.0,0.00011732,2]
[330208169,1719162644030,-150.0,0.00011736,2]
[330208170,1719162644039,-150.0,0.00011738,2]
[330208171,1719162644048,-150.0,0.00011742,2]
[330208172,1719162644058,-150.0,0.00011746,2]
[330208173,1719162644066,-300.0,0.00011748,2]
[330208174,1719162644076,-150.0,0.00011749,2]
[330208175,1719162644085,-150.0,0.00011751,2]
[330208177,1719162644095,-150.0,0.00011751,2]
[330208179,1719162644104,-150.0,0.00011752,2]
[330208181,1719162644113,-150.0,0.00011756,2]
[330208183,1719162644123,-150.0,0.00011757,2]
[330208185,1719162644133,-150.0,0.00011758,2]
[330208187,1719162644142,-150.0,0.00011759,2]
[330208190,1719162644151,-150.0,0.00011759,2]
[330208193,1719162644161,-1500.0,0.00011762,2]
[330208196,1719162644170,-150.0,0.00011764,2]
[330208200,1719162644179,-150.0,0.00011765,2]
[330208204,1719162644189,-1321.57938699,0.00011771,2]
[330208207,1719162644198,-306.64439152,0.00011772,2]
[330208210,1719162644208,-150.0,0.00011774,2]
[330208213,1719162644217,-150.0,0.00011778,2]
[330208215,1719162644226,-150.0,0.00011778,2]
[330208217,1719162644236,-150.0,0.00011778,2]
[330208219,1719162644245,-2491.01847886,0.00011779,2]
[330208221,1719162644260,-150.0,0.0001178,2]
[330208223,1719162644269,-150.0,0.0001178,2]
[330208225,1719162644278,-150.0,0.00011785,2]
[330208227,1719162644289,-150.0,0.00011787,2]
[330208229,1719162644298,-150.0,0.0001179,2]
[330208231,1719162644307,-150.0,0.00011794,2]
[330208233,1719162644316,-150.0,0.00011797,2]
[330208235,1719162644329,-150.0,0.00011799,2]
[330208236,1719162644338,-150.0,0.00011799,2]
[330208237,1719162644347,-2096.32833613,0.000118,2]
[330208238,1719162644356,-150.0,0.00011803,2]
[330208239,1719162644366,-76.23107943,0.00011803,2]
[330208240,1719162644383,-73.76892057,0.00011803,2]
[330208241,1719162644392,-150.0,0.00011803,2]
[330208242,1719162644402,-150.0,0.00011811,2]
[330208243,1719162644411,-1500.0,0.00011815,2]
[330208244,1719162644421,-150.0,0.00011818,2]
[330208245,1719162644430,-150.0,0.00011819,2]
[330208246,1719162644440,-150.0,0.0001182,2]
[330208247,1719162644449,-150.0,0.00011821,2]
[330208248,1719162644459,-150.0,0.00011822,2]
[330208249,1719162644469,-150.0,0.00011826,2]
[330208250,1719162644479,-150.0,0.00011826,2]
[330208251,1719162644489,-300.0,0.00011828,2]
[330208252,1719162644499,-150.0,0.0001183,2]
[330208253,1719162644509,-150.0,0.00011837,2]
[330208254,1719162644520,-150.0,0.0001184,2]
[330208255,1719162644530,-150.0,0.0001184,2]
[330208256,1719162644540,-1409.68019522,0.00011841,2]
[330208257,1719162644549,-150.0,0.00011842,2]
[330208258,1719162644559,-150.0,0.00011842,2]
[330208259,1719162644569,-150.0,0.00011843,2]
[330208260,1719162644580,-150.0,0.00011844,2]
[330208261,1719162644590,-1500.0,0.00011846,2]
[330208262,1719162644600,-150.0,0.00011849,2]
[330208263,1719162644610,-150.0,0.00011852,2]
[330208264,1719162644620,-150.0,0.00011855,2]
[330208265,1719162644629,-150.0,0.0001186,2]
[330208266,1719162644639,-150.0,0.00011865,2]
[330208267,1719162644649,-150.0,0.00011866,2]
[330208268,1719162644659,-150.0,0.00011872,2]
[330208269,1719162644668,-300.0,0.00011872,2]
[330208270,1719162644678,-150.0,0.00011875,2]
[330208271,1719162644688,-300.0,0.00011876,2]
[330208272,1719162644699,-157.51406348,0.00011881,2]
[330208273,1719162644709,-150.0,0.00011882,2]
[330208274,1719162644719,-150.0,0.00011884,2]
[330208275,1719162644729,-150.0,0.00011885,2]
[330208276,1719162644739,-155.0,0.00011885,2]
[330208277,1719162644750,-150.0,0.00011886,2]
[330208278,1719162644761,-150.0,0.00011888,2]
[330208279,1719162644771,-170.05497145,0.00011888,2]
[330208280,1719162644782,-150.0,0.00011889,2]
[330208281,1719162644791,-159.54468588,0.0001189,2]
[330208282,1719162644801,-219.9,0.0001189,2]
[330208283,1719162644810,-150.0,0.00011891,2]
[330208284,1719162644821,-150.0,0.00011895,2]
[330208285,1719162644834,-150.0,0.00011897,2]
[330208286,1719162644842,-122516.7323,0.00011899,2]
[330208287,1719162644852,-483.735,0.00011899,2]
[330208288,1719162644865,-500.0,0.00011899,2]
[330208289,1719162644874,-15389.3223,0.00011899,2]
[330208290,1719162644882,-523.58022278,0.00011899,2]
[330208291,1719162644891,-155.0,0.00011899,2]
[330208292,1719162644900,-4590.142631,0.000119,2]
[330208293,1719162644909,-178.16282074,0.000119,2]
[330208294,1719162644918,-150.0,0.000119,2]
[330208295,1719162644927,-351.30424824,0.000119,2]
[330208296,1719162644936,-150.0,0.000119,2]
[330208297,1719162644945,-182.04870981,0.000119,2]
[330208298,1719162644954,-659.86897458,0.000119,2]
[330208299,1719162644963,-150.0,0.00011902,2]
[330208300,1719162644974,-150.0,0.00011902,2]
[330208301,1719162644984,-150.0,0.00011902,2]
[330208302,1719162644994,-150.0,0.00011902,2]
[330208303,1719162645004,-500.0,0.00011903,2]
[330208304,1719162645014,-150.0,0.00011903,2]
[330208305,1719162645023,-955.73097325,0.00011903,2]
[330208306,1719162645032,-500.0,0.00011904,2]
[330208307,1719162645041,-500.0,0.00011904,2]
[330208308,1719162645050,-500.0,0.00011904,2]
[330208309,1719162645060,-500.0,0.00011904,2]
[330208310,1719162645069,-150.0,0.00011906,2]
[330208311,1719162645080,-150.0,0.00011913,2]
[330208312,1719162645090,-1130.60662013,0.00011932,2]
[330208313,1719162645099,-150.0,0.00011937,2]
[330208314,1719162645108,-150.0,0.00011941,2]
[330208315,1719162645117,-150.0,0.00011943,2]
[330208316,1719162645126,-349.18788334,0.00011968,2]
[330208317,1719162645135,-150.0,0.00011969,2]
[330208318,1719162645144,-180.77276171,0.00011974,2]
[330208319,1719162645155,-150.0,0.00011975,2]
[330208320,1719162645166,-269.27286365,0.00011982,2]
[330208321,1719162645176,-174.95966,0.00011983,2]
[330208322,1719162645185,-1133.76952232,0.00011985,2]
[330208323,1719162645195,-158.83934947,0.00011985,2]
[330208324,1719162645206,-1500.0,0.00011986,2]
[330208325,1719162645215,-2198.601142,0.0001199,2]
[330208326,1719162645224,-179.98125638,0.0001199,2]
[330208327,1719162645234,-155.0,0.0001199,2]
[330208328,1719162645243,-3126.8479562,0.00011991,2]
[330208329,1719162645258,-150.01,0.00011999,2]
[330208330,1719162645268,-2905.16852407,0.00011999,2]
[330208331,1719162645277,-226417.66852602,0.00011999,2]
[330208332,1719162645287,-107488.52490309,0.00012,2]
[330208335,1719162647508,-646.11840695,0.00010956,2]
[330208336,1719162647706,-1000.54103258,0.00010956,2]
[330208337,1719162647723,-705.0,0.00010956,2]
[330208338,1719162647735,-1680.37818217,0.00010956,2]
[330208339,1719162647747,-675.26440606,0.00010956,2]
[330208340,1719162647772,-430.09096335,0.00010956,2]
[330208341,1719162647783,-241.82951588,0.00010956,2]
[330208342,1719162647792,-553.80154895,0.000114,4]
[330208343,1719162647803,-596.59521467,0.000114,4]
[330208344,1719162647815,-454.68489641,0.000114,4]
[330208345,1719162647826,-894.91833997,0.000114,4]
[330208346,1719162647837,-119.95151063,0.000115,4]
[330208347,1719162647851,-1542.7683886,0.000115,4]
[330208348,1719162647861,-267.4757485,0.000115,4]
[330208349,1719162647873,-1020.63417092,0.000115,4]
[330208350,1719162647885,-149.17018135,0.000115,4]
[330208351,1719162647894,-150.01,0.00011999,2]
[330208352,1719162647903,-49758.20221286,0.00012,2]
[330208353,1719162647915,-1613.85,0.00012,2]
[330208354,1719162647942,-134000.0,0.00012,2]
[330208355,1719162647954,-896.01,0.00012,2]
[330208356,1719162647967,-6196.59169592,0.00012,2]
[330208359,1719162647994,-2776.52155191,0.00012,2]
[330208362,1719162648005,-894.62877208,0.00012,2]
[330208447,1719162747745,638.4,9.262e-05,2]
[330208453,1719163265570,644.53,8.759e-05,2]
[330208457,1719163681602,9283.44127061,8.923e-05,2]
[330208475,1719163833519,-482.0,0.00010532,2]
[330208476,1719163833529,-710.8949193,0.00010559,2]
[330208477,1719163833681,-289.1050807,0.00010559,2]
[330208478,1719163833694,-176.54612569,0.00010563,2]
[330208479,1719163833706,-315.31387431,0.00010563,2]
[330208480,1719163833716,-2431.72,0.0001057,2]
[330208481,1719163833727,-606.73666846,0.00010587,2]
[330208482,1719163833740,-1718.27333154,0.00010587,2]
[330208483,1719163833749,-3987.19711959,0.00010589,2]
[330208484,1719163833762,-55.21288041,0.00010589,2]
[330208485,1719163833772,-529.72889138,0.00010594,2]
[330208486,1719163833781,-391.75083868,0.00010595,2]
[330208487,1719163833845,-489.49916132,0.00010595,2]
[330208489,1719163833855,-10.50083868,0.00010645,2]
[330208513,1719163838819,-593.32232607,0.00010645,2]
[330208515,1719163839176,-158.21683525,0.00010645,2]
[330208516,1719163839185,-4255.28316475,0.0001065,2]
[330208517,1719163839197,-1020.14729155,0.0001065,2]
[330208659,1719163841077,-1319.73794912,0.0001065,2]
[330208661,1719163841090,-17304.83159458,0.0001065,2]
[330208663,1719163841099,-250.0,0.00010659,2]
[330208666,1719163841110,-909.67,0.00010659,2]
[330208668,1719163841119,-8047.28,0.00010659,2]
[330208669,1719163841129,-189.05,0.00010662,2]
[330208671,1719163841138,-150.99,0.00010708,2]
[330208674,1719163841149,-169.73,0.0001074,2]
[330208676,1719163841159,-155.0,0.00010816,2]
[330208678,1719163841175,-250.0,0.00010928,2]
[330208679,1719163841185,-150.0,0.00010959,2]
[330208681,1719163841195,-85.70036103,0.00011002,2]
[330208684,1719163841208,-2405.31811783,0.00011002,2]
[330208686,1719163841219,-644.53,0.00011023,2]
[330208688,1719163841229,-3106.52214219,0.00011057,2]
[330208690,1719163841238,-887.81042537,0.00011062,2]
[330208692,1719163841248,-400.0,0.000111,4]
[330208693,1719163841257,-900.0,0.000112,4]
[330208696,1719163841268,-411.27901864,0.00011226,2]
[330208697,1719163841277,-150.99,0.00011226,2]
[330208700,1719163841287,-499.99,0.00011226,2]
[330208702,1719163841297,-155.20531345,0.00011226,2]
[330208704,1719163841307,-155.20531345,0.00011226,2]
[330208706,1719163841317,-1400.0,0.000113,4]
[330208708,1719163841328,-1900.0,0.000114,4]
[330208710,1719163841337,-153.71,0.00011479,2]
[330208712,1719163841348,-2400.0,0.000115,4]
[330208714,1719163841358,-400.0,0.000116,4]
[330208716,1719163841368,-150.0,0.00011614,2]
[330208718,1719163841377,-150.0,0.00011623,2]
[330208720,1719163841387,-150.0,0.00011625,2]
[330208722,1719163841397,-150.0,0.00011626,2]
[330208724,1719163841406,-150.0,0.00011627,2]
[330208726,1719163841419,-150.0,0.00011628,2]
[330208728,1719163841428,-150.0,0.00011632,2]
[330208730,1719163841438,-150.0,0.00011632,2]
[330208732,1719163841447,-150.0,0.00011634,2]
[330208734,1719163841457,-150.0,0.00011635,2]
[330208736,1719163841467,-150.0,0.00011638,2]
[330208738,1719163841477,-101904.82695164,0.00011644,2]
[330208741,1719163841505,-1506.45059695,0.00011644,2]
[330208744,1719163841517,-10572.10464026,0.00011644,2]
[330208746,1719163841529,-271.19070139,0.00011644,2]
[330208954,1719163843711,-1069.67493178,0.00011095,2]
[330208958,1719163843723,-24228.42710976,0.00011644,2]
[330208962,1719163843733,-150.0,0.00011645,2]
[330208966,1719163843743,-150.0,0.0001165,2]
[330208970,1719163843752,-150.0,0.00011652,2]
[330208973,1719163843762,-150.0,0.0001166,2]
[330208975,1719163843772,-219.67573938,0.00011663,2]
[330208977,1719163843781,-150.0,0.00011664,2]
[330208980,1719163843791,-150.0,0.00011665,2]
[330208982,1719163843802,-150.0,0.00011666,2]
[330208984,1719163843812,-150.0,0.00011668,2]
[330208986,1719163843821,-150.0,0.0001167,2]
[330208988,1719163843831,-150.0,0.00011671,2]
[330208990,1719163843841,-150.0,0.00011672,2]
[330208992,1719163843851,-150.0,0.00011674,2]
[330208994,1719163843860,-150.0,0.00011675,2]
[330208996,1719163843870,-150.0,0.00011679,2]
[330208998,1719163843880,-150.0,0.00011683,2]
[330209000,1719163843889,-150.0,0.00011683,2]
[330209002,1719163843899,-150.0,0.00011684,2]
[330209004,1719163843908,-150.0,0.00011685,2]
[330209006,1719163843919,-150.0,0.00011688,2]
[330209008,1719163843929,-150.0,0.00011688,2]
[330209010,1719163843938,-150.0,0.00011694,2]
[330209012,1719163843948,-150.0,0.00011695,2]
[330209014,1719163843958,-400.0,0.000117,4]
[330209016,1719163843968,-150.0,0.00011703,2]
[330209018,1719163843977,-150.0,0.00011711,2]
[330209020,1719163843987,-150.0,0.00011712,2]
[330209022,1719163843997,-150.0,0.00011716,2]
[330209024,1719163844007,-150.0,0.00011718,2]
[330209026,1719163844016,-150.0,0.00011719,2]
[330209028,1719163844026,-150.0,0.00011729,2]
[330209030,1719163844035,-150.0,0.00011729,2]
[330209032,1719163844044,-150.0,0.0001173,2]
[330209034,1719163844054,-150.0,0.00011731,2]
[330209036,1719163844063,-150.0,0.00011731,2]
[330209038,1719163844073,-475.03236133,0.00011733,2]
[330209040,1719163844083,-150.0,0.00011734,2]
[330209042,1719163844092,-150.0,0.00011734,2]
[330209044,1719163844102,-150.0,0.00011736,2]
[330209046,1719163844112,-150.0,0.00011736,2]
[330209048,1719163844122,-378.5538196,0.00011738,2]
[330209050,1719163844131,-378.5538196,0.00011738,2]
[330209052,1719163844140,-150.0,0.00011739,2]
[330209053,1719163844149,-150.0,0.00011749,2]
[330209055,1719163844158,-150.0,0.0001175,2]
[330209057,1719163844169,-150.0,0.00011753,2]
[330209059,1719163844178,-158.25040673,0.00011759,2]
[330209061,1719163844187,-150.0,0.0001176,2]
[330209063,1719163844198,-150.0,0.00011761,2]
[330209065,1719163844207,-150.0,0.00011762,2]
[330209067,1719163844218,-150.0,0.00011765,2]
[330209069,1719163844228,-150.0,0.00011765,2]
[330209071,1719163844238,-383.65473788,0.00011769,2]
[330209073,1719163844248,-150.0,0.0001177,2]
[330209075,1719163844257,-150.0,0.00011776,2]
[330209077,1719163844267,-13085.7996,0.0001178,2]
[330209079,1719163844277,-150.0,0.00011785,2]
[330209081,1719163844288,-150.0,0.00011787,2]
[330209083,1719163844297,-150.0,0.00011788,2]
[330209085,1719163844307,-150.0,0.00011788,2]
[330209087,1719163844318,-150.0,0.00011793,2]
[330209089,1719163844328,-150.0,0.00011794,2]
[330209090,1719163844338,-3242.0,0.00011798,2]
[330209091,1719163844347,-5193.964,0.00011799,2]
[330209092,1719163844358,-224.99,0.000118,2]
[330209094,1719163844368,-150.0,0.000118,2]
[330209096,1719163844378,-150.0,0.000118,2]
[330209098,1719163844388,-400.0,0.000118,4]
[330209100,1719163844397,-150.0,0.00011809,2]
[330209102,1719163844407,-150.0,0.0001181,2]
[330209104,1719163844418,-150.0,0.00011811,2]
[330209106,1719163844428,-150.0,0.00011813,2]
[330209108,1719163844438,-150.0,0.00011815,2]
[330209110,1719163844448,-150.0,0.00011816,2]
[330209112,1719163844457,-150.0,0.00011817,2]
[330209114,1719163844468,-150.0,0.00011822,2]
[330209116,1719163844478,-150.0,0.00011827,2]
[330209118,1719163844488,-150.0,0.00011828,2]
[330209120,1719163844497,-366.11090361,0.00011828,2]
[330209122,1719163844507,-150.0,0.00011829,2]
[330209124,1719163844516,-150.0,0.00011832,2]
[330209126,1719163844527,-150.0,0.00011836,2]
[330209128,1719163844537,-150.0,0.0001184,2]
[330209130,1719163844547,-196.17673017,0.00011841,2]
[330209132,1719163844557,-196.17673017,0.00011841,2]
[330209134,1719163844567,-150.0,0.00011842,2]
[330209136,1719163844577,-831.0590105,0.00011849,2]
[330209138,1719163844587,-831.0590105,0.00011849,2]
[330209140,1719163844597,-150.0,0.0001185,2]
[330209142,1719163844607,-150.0,0.0001185,2]
[330209144,1719163844617,-150.0,0.00011856,2]
[330209146,1719163844627,-155.0,0.00011856,2]
[330209148,1719163844637,-150.0,0.00011857,2]
[330209150,1719163844646,-208.2521774,0.00011858,2]
[330209152,1719163844656,-150.0,0.00011859,2]
[330209154,1719163844666,-150.0,0.00011862,2]
[330209156,1719163844677,-150.0,0.00011865,2]
[330209157,1719163844691,-150.0,0.0001187,2]
[330209158,1719163844701,-150.0,0.0001187,2]
[330209159,1719163844711,-150.0,0.00011874,2]
[330209160,1719163844720,-155.0,0.00011874,2]
[330209161,1719163844731,-150.0,0.00011875,2]
[330209162,1719163844741,-150.0,0.00011879,2]
[330209163,1719163844751,-150.0,0.00011879,2]
[330209164,1719163844762,-150.0,0.00011879,2]
[330209165,1719163844772,-1000.0,0.00011879,2]
[330209166,1719163844782,-150.0,0.00011881,2]
[330209167,1719163844791,-150.0,0.00011882,2]
[330209168,1719163844801,-150.0,0.00011884,2]
[330209170,1719163844810,-150.0,0.00011885,2]
[330209172,1719163844820,-219.86,0.0001189,2]
[330209174,1719163844830,-155.0,0.00011898,2]
[330209175,1719163844840,-240.38467831,0.00011899,2]
[330209177,1719163844850,-155.0,0.00011899,2]
[330209179,1719163844860,-363.8321875,0.00011899,2]
[330209181,1719163844869,-176.47864197,0.000119,2]
[330209183,1719163844879,-5928.9644,0.000119,2]
[330209185,1719163844888,-1274.54721738,0.000119,2]
[330209187,1719163844898,-4050.7381,0.000119,2]
[330209189,1719163844908,-178.16282075,0.000119,2]
[330209191,1719163844919,-802.0,0.000119,2]
[330209193,1719163844929,-2296.05805228,0.000119,2]
[330209195,1719163844938,-333.20600572,0.000119,2]
[330209197,1719163844947,-7468.4732,0.000119,2]
[330209199,1719163844957,-400.0,0.000119,4]
[330209201,1719163844967,-1319.73794912,0.000119,2]
[330209203,1719163844977,-438.00098198,0.00011903,2]
[330209205,1719163844986,-155.0,0.00011903,2]
[330209207,1719163844996,-438.00098198,0.00011903,2]
[330209209,1719163845005,-283.50525412,0.00011903,2]
[330209211,1719163845015,-500.0,0.00011904,2]
[330209213,1719163845025,-242.09159978,0.0001199,2]
[330209215,1719163845034,-6527.7580191,0.00011991,2]
[330209217,1719163845043,-6414.31372469,0.00011991,2]
[330209225,1719163845115,-720.19752,0.00011991,2]
[330209304,1719163846838,-463.21,0.00010959,2]
[330209305,1719163846848,-36.79,0.00011666,2]
[330209306,1719163846925,-463.2,0.00011666,2]
[330209307,1719163846935,-208.2521774,0.00011856,2]
[330209308,1719163846945,-3296.31523483,0.00011991,2]
[330209309,1719163846956,-295.54976962,0.00011991,2]
[330209314,1719163936814,580.07,9.072e-05,2]
[330209320,1719164484252,551.06,8.743e-05,2]
[330209322,1719164601963,500.0,0.00025999,120]
[330209324,1719164689243,180.77276171,9.4e-05,2]
[330209325,1719164705872,450.07456747,9.4e-05,2]
[330209326,1719164706301,349.18788334,9.4e-05,2]
[330209327,1719164834752,3242.0,8.923e-05,2]
[330209330,1719165027600,523.5,8.671e-05,2]
[330209338,1719165031830,-169.73,0.00010592,2]
[330209339,1719165031839,-235.39,0.00010605,2]
[330209340,1719165031848,-31.71015769,0.00010618,2]
[330209341,1719165031860,-2224.00984231,0.00010618,2]
[330209342,1719165031870,-250.0,0.00010623,2]
[330209343,1719165031879,-285.86312721,0.00010627,2]
[330209344,1719165031889,-250.0,0.00010632,2]
[330209345,1719165031899,-300.0,0.00010645,2]
[330209346,1719165031908,-1305.39578295,0.00010646,2]
[330209347,1719165031926,-1116.34183063,0.00010646,2]
[330209348,1719165031941,-4984.94439294,0.00010646,2]
[330209349,1719165031952,-16493.31799348,0.00010646,2]
[330209350,1719165031962,-1000.0,0.00010658,2]
[330209351,1719165031971,-1056.22,0.00010708,2]
[330209352,1719165031981,-1627.92964949,0.00010806,2]
[330209353,1719165031991,-150.94,0.00010807,2]
[330209354,1719165032001,-181.44,0.00010807,2]
[330209355,1719165032010,-499.99,0.00010807,2]
[330209356,1719165032020,-190.13536825,0.00010816,2]
[330209357,1719165032029,-523.5,0.00010935,2]
[330209358,1719165032038,-150.0,0.00010959,2]
[330209359,1719165032048,-475.03236133,0.00011079,2]
[330209360,1719165032058,-158.25040673,0.00011094,2]
[330209361,1719165032067,-219.67573938,0.00011095,2]
[330209362,1719165032076,-346.03148912,0.00011099,2]
[330209363,1719165032086,-600.0,0.000111,4]
[330209364,1719165032097,-155.0,0.0001114,2]
[330209365,1719165032108,-450.07456747,0.00011199,2]
[330209366,1719165032117,-1300.0,0.000112,4]
[330209367,1719165032127,-155.20531345,0.00011226,2]
[330209368,1719165032136,-170.32,0.00011233,2]
[330209369,1719165032146,-155.18972559,0.00011264,2]
[330209370,1719165032155,-2000.0,0.000113,4]
[330209371,1719165032165,-2600.0,0.000114,4]
[330209372,1719165032180,-3300.0,0.000115,4]
[330209374,1719165032190,-383.65473788,0.00011526,2]
[330209376,1719165032199,-240.38467831,0.00011542,2]
[330209378,1719165032208,-5928.9644,0.00011544,2]
[330209380,1719165032218,-600.0,0.000116,4]
[330209382,1719165032227,-150.0,0.00011608,2]
[330209384,1719165032236,-150.0,0.00011612,2]
[330209386,1719165032245,-155.0,0.00011614,2]
[330209388,1719165032256,-150.0,0.00011615,2]
[330209390,1719165032265,-150.0,0.00011618,2]
[330209392,1719165032276,-150.0,0.00011618,2]
[330209394,1719165032285,-150.0,0.00011619,2]
[330209396,1719165032294,-150.0,0.00011619,2]
[330209398,1719165032303,-150.0,0.0001162,2]
[330209400,1719165032313,-150.0,0.00011629,2]
[330209402,1719165032322,-150.0,0.0001163,2]
[330209404,1719165032331,-150.0,0.00011633,2]
[330209407,1719165032341,-150.0,0.00011635,2]
[330209408,1719165032349,-150.0,0.00011637,2]
[330209410,1719165032358,-150.0,0.00011638,2]
[330209412,1719165032367,-150.0,0.00011639,2]
[330209414,1719165032377,-150.0,0.00011641,2]
[330209416,1719165032386,-150.0,0.00011643,2]
[330209419,1719165032395,-24229.0,0.00011644,2]
[330209421,1719165032404,-150.0,0.00011645,2]
[330209423,1719165032414,-150.0,0.00011647,2]
[330209425,1719165032425,-150.0,0.00011649,2]
[330209427,1719165032435,-150.0,0.00011653,2]
[330209429,1719165032445,-150.0,0.00011665,2]
[330209431,1719165032454,-150.0,0.00011671,2]
[330209433,1719165032464,-150.0,0.00011673,2]
[330209435,1719165032474,-150.0,0.00011675,2]
[330209437,1719165032488,-150.0,0.00011675,2]
[330209440,1719165032504,-150.0,0.00011679,2]
[330209443,1719165032520,-150.0,0.00011683,2]
[330209445,1719165032531,-150.0,0.00011684,2]
[330209447,1719165032546,-150.0,0.00011686,2]
[330209450,1719165032561,-150.0,0.00011687,2]
[330209453,1719165032576,-150.0,0.00011689,2]
[330209455,1719165032589,-150.0,0.00011698,2]
[330209458,1719165032607,-150.0,0.00011699,2]
[330209460,1719165032621,-150.0,0.000117,2]
[330209463,1719165032634,-1000.0,0.000117,2]
[330209465,1719165032647,-600.0,0.000117,4]
[330209468,1719165032662,-420.0,0.00011701,2]
[330209470,1719165032675,-150.0,0.00011705,2]
[330209473,1719165032687,-150.0,0.00011705,2]
[330209475,1719165032701,-150.0,0.00011705,2]